[Event "Grand Prix Romania 1st Stage 2024"]
[Site "Bucuresti"]
[Date "2024.03.23"]
[Round "4.6"]
[White "Sokolov, Ivan"]
[Black "Shuvalova, Polina"]
[Result "0-1"]
[ECO "D35"]
[WhiteElo "2590"]
[BlackElo "2455"]
[Annotator "TA"]
[PlyCount "72"]
[EventDate "2024.03.20"]
[EventType "swiss"]
[EventCountry "ROU"]
[SourceTitle "playchess.com"]
[Source "ChessBase"]
[SourceQuality "1"]
[TimeControl "900+5"]

{[%evp 12,72,21,21,21,0,14,0,6,13,0,-14,-16,-41,-35,-36,-33,-28,-30,-24,-7,-22,-30,-33,-25,-22,-27,-33,-18,-20,-20,-21,-12,-60,-21,-36,-38,-56,-37,-48,-47,-81,-19,-109,-92,-86,-65,-103,-99,-195,-194,-175,-147,-191,-76,-74,-79,-76,-67,-54,-50,-916,-916]} 1. d4 {[%emt 0:00:05]} Nf6 {[%emt 0:00:02]} 2. c4 {[%emt 0:00:00]} e6 {[%emt 0:00:02]} 3. Nc3 {[%emt 0:00:00]} d5 {[%emt 0:00:01]} 4. cxd5 {[%emt 0:00:07]} Nxd5 {[%emt 0:00:02]} 5. e4 {[%emt 0:00:06]} Nxc3 {[%emt 0:00:02]} 6. bxc3 {[%emt 0:00:01]} c5 {[%emt 0:00:01]} 7. Rb1 {[%emt 0:00:04]} Be7 {[%emt 0:00:02]} 8. Nf3 {[%emt 0:00:03]} O-O {[%emt 0:00:03]} 9. Be2 {[%emt 0:00:13]} b6 {[%emt 0:00:18] The position is equal.} 10. O-O {[%emt 0:00:10]} Bb7 {[%emt 0:00:02]} 11. Qc2 {[%emt 0:00:28][%cal Od4d5]} Qc7 {[%emt 0:00:06]} 12. Be3 {[%emt 0:00:36]} cxd4 {[%emt 0:00:10]} 13. Nxd4 {[%emt 0:00:01]} Nd7 {[%emt 0:00:27]} 14. f3 {[%emt 0:00:10]} Rfc8 {[%emt 0:01:15]} 15. Nb5 {[%emt 0:01:14]} Qc6 {[%emt 0:00:12]} 16. Rfc1 {[%emt 0:00:02]} Bc5 {[%emt 0:00:49]} 17. Nd4 {[%emt 0:00:17]} Qc7 {[%emt 0:00:13]} 18. Qd2 {[%emt 0:00:03]} Rd8 {[%emt 0:01:04]} 19. Kh1 {[%emt 0:00:03]} Nf8 {[%emt 0:00:15]} 20. Qe1 {[%emt 0:00:13]} e5 {[%emt 0:00:58]} 21. Qg3 {[%emt 0:00:38]} Ng6 {[%emt 0:00:03]} (21... Bxd4 $2 22. cxd4 Qd6 23. Qxe5 (23. dxe5 Qa3 $16) 23... Qxe5 24. dxe5 $16) 22. h4 {[%emt 0:00:23]} (22. Qf2 $11) 22... Rac8 {[%emt 0:02:49]} (22... Bxd4 23. cxd4 Qd6 24. dxe5 Nxe5 25. Bf4 $16) 23. Bg5 {[%emt 0:00:42]} Be7 {[%emt 0:01:01]} 24. Nf5 {[%emt 0:00:37] [#] Bxe7 is the strong threat.} Bxg5 {[%emt 0:00:02]} 25. Qxg5 {[%emt 0:00:04]} f6 {[%emt 0:00:30]} 26. Qg4 {[%emt 0:00:01]} Rd2 {[%emt 0:00:31]} (26... Nf4 $17 27. Bf1 g6) 27. h5 {[%emt 0:00:40]} (27. Rd1 $11 Rcd8 (27... Rxe2 28. Rd7 $16) (27... Qxc3 $2 28. h5 $18) (27... Rxa2 $2 28. Bb5 $18) 28. Rxd2 Rxd2 29. Rd1 Rxd1+ (29... Rxe2 $2 30. h5 $18) (29... Rxa2 $2 30. Bc4+ Kh8 31. Bxa2 $18) (29... Qxc3 30. h5 $11) 30. Bxd1) 27... Nf4 $17 {[%emt 0:00:34]} (27... Rxe2 $6 28. hxg6 hxg6 29. Qxg6 $11) 28. Bf1 {[%emt 0:05:22]} Rcd8 {[%emt 0:00:17][%cal Og7g6]} (28... Rxa2 $2 29. Bc4+ Kh8 30. Bxa2 $18) 29. h6 {[%emt 0:00:04][%cal Of1c4] [#] Strongly threatening Bc4+!} g6 {[%emt 0:00:09][%cal Og8f7]} (29... Rxa2 $2 30. Bc4+ (30. Nxg7 Kf7 $18) (30. Qxg7+ Qxg7 31. hxg7 Bc8 $18) (30. hxg7 Ng6 $18) 30... Bd5 31. hxg7 $18 (31. Bxd5+ Rxd5 32. hxg7 Ng6 $18) (31. exd5 Rxg2 32. Bb3 Rxg4 $18) (31. Bxa2 Bxa2 32. Ra1 Bc4 $18)) 30. Ng7 {[%emt 0:00:01]} (30. Ne3 $17) 30... Bc8 $19 {[%emt 0:00:07]} (30... Rxa2 $2 31. Ne6 $18) 31. Qh4 {[%emt 0:00:02]} Qe7 $36 {[%emt 0:01:09][%cal Og8f7][%mdl 2048] White is under strong pressure.} (31... Rxa2 32. Qxf6 Rf8 33. Qg5 $14) 32. c4 {[%emt 0:00:04]} Ne6 {[%emt 0:00:38]} (32... Rxa2 33. c5 Ba6 (33... bxc5 $2 34. Bc4+ Kh8 35. Bxa2 $18) 34. Bxa6 Rxa6 35. cxb6 (35. c6 Ra2 $11) 35... Rxb6 36. Rxb6 axb6 37. Rb1 $11) (32... Nd3 $19 33. Bxd3 R2xd3 (33... R8xd3 34. c5 $17)) 33. Nxe6 $17 {[%emt 0:00:05]} Bxe6 {[%emt 0:00:02]} 34. a4 {[%emt 0:00:21][%cal Oa4a5]} Ra2 {[%emt 0:00:34][%cal Og6g5] Black is much more active.} 35. c5 {[%emt 0:00:13]} bxc5 {[%emt 0:00:15][%cal Og6g5] aiming for ...g5!} 36. Rxc5 $2 {[%emt 0:00:02][%mdl 8192]} g5 $1 {[%emt 0:00:32] Weighted Error Value: White=0.39/Black=0.13 (very precise) .  Loses game:     	White=1     	---        Mistake:       	White=3     	Black=2      Inaccurate:     	White=2     	Black=1      OK:         	White=10    	Black=11     Best:        	White=1     	Black=1      Strong:       	---       	Black=1} (36... Qxc5 $2 {is the wrong capture.} 37. Qxf6 Qc7 38. Qxe6+ Qf7 39. Bc4 (39. Qxe5 Rc2 $16) (39. Qxf7+ Kxf7 40. Bc4+ Kf6 $18) 39... Qxe6 40. Bxe6+ Kf8 41. Bxa2 $18) 0-1

[Event "Grand Prix Romania 1st Stage 2024"]
[Site "Bucuresti"]
[Date "2024.03.23"]
[Round "4.7"]
[White "Baltag, Iulian"]
[Black "Mamedov, Rauf"]
[Result "1/2-1/2"]
[ECO "B30"]
[WhiteElo "2412"]
[BlackElo "2651"]
[Annotator "TA"]
[PlyCount "116"]
[EventDate "2024.03.20"]
[EventType "swiss"]
[EventCountry "ROU"]
[SourceTitle "playchess.com"]
[Source "ChessBase"]
[SourceQuality "1"]
[TimeControl "900+5"]

{[%evp 43,116,0,14,0,0,17,45,52,114,85,104,0,0,0,32,0,0,-20,18,12,58,0,0,-111,-108,-90,-91,-313,0,0,0,0,133,134,113,119,129,133,123,120,193,195,244,240,247,173,207,194,231,0,0,0,0,0,0,0,0,0,0,0,0,-206,0,0,0,0,38,37,36,37,31,22,13,14,61]} 1. e4 {[%emt 0:00:01]} c5 {[%emt 0:00:01]} 2. Nf3 {[%emt 0:00:04]} Nc6 {[%emt 0:00:03]} 3. Bb5 {[%emt 0:00:09]} Nf6 {[%emt 0:00:08]} 4. Bxc6 {[%emt 0:00:15]} dxc6 {[%emt 0:00:02]} 5. d3 {[%emt 0:00:04]} Bg4 {[%emt 0:00:03]} 6. Nbd2 {[%emt 0:00:05] B30: Sizilianisch (Rossolimo-Variante).} Nd7 {[%emt 0:00:19]} 7. h3 {[%emt 0:00:07]} Bh5 {[%emt 0:00:01]} 8. a4 {[%emt 0:00:30]} e5 {[%emt 0:00:15]} 9. g4 {[%emt 0:00:54]} Bg6 {[%emt 0:00:01]} 10. Nc4 {[%emt 0:00:02]} f6 {[%emt 0:01:03]} 11. Nh4 $146 {[%emt 0:00:22]} ({Predecessor:} 11. a5 Be7 12. h4 Nf8 13. Bd2 Ne6 14. h5 Bf7 15. g5 Nxg5 16. Bxg5 Bxc4 17. dxc4 fxg5 18. Qxd8+ Kxd8 {½-½ Dolgun,C (2319)-Kotronias,V (2482) Ayvalik Yagmur Gp-A 2022 (6)}) 11... Bf7 {[%emt 0:00:20]} 12. Qf3 {[%emt 0:00:07]} Qc7 {[%emt 0:03:41]} 13. g5 {[%emt 0:00:43]} O-O-O {[%emt 0:00:01]} 14. b3 {[%emt 0:00:31]} Kb8 {[%emt 0:00:07]} 15. Bd2 {[%emt 0:00:13]} Be6 {[%emt 0:00:45]} 16. gxf6 {[%emt 0:00:23]} gxf6 {[%emt 0:00:29]} 17. Rg1 {[%emt 0:00:20]} Be7 {[%emt 0:01:43]} 18. Nf5 {[%emt 0:00:06]} Rdg8 {[%emt 0:00:14]} 19. Ke2 {[%emt 0:00:51]} Bd8 {[%emt 0:00:40]} 20. Qh5 {[%emt 0:00:11]} Nf8 {[%emt 0:00:22]} 21. Rg4 {[%emt 0:02:13]} Bf7 {[%emt 0:00:19]} 22. Qh6 {[%emt 0:00:15]} Bg6 $1 {[%emt 0:01:00]} 23. Rag1 {[%emt 0:00:50]} Ne6 {[%emt 0:00:00]} 24. h4 {[%emt 0:00:30]} Rf8 {[%emt 0:02:34]} 25. Be3 {[%emt 0:00:30]} Nd4+ {[%emt 0:00:33]} (25... Qd7 $14) 26. Bxd4 $16 {[%emt 0:00:19]} exd4 {[%emt 0:00:01]} 27. Rf4 {[%emt 0:00:37]} (27. Ncd6 $16) 27... Rfg8 $1 $11 {[%emt 0:00:50]} 28. Rg3 {[%emt 0:01:30]} Qd7 {[%emt 0:00:50]} 29. Rfg4 {[%emt 0:01:54]} (29. h5 $5 Bc7 30. hxg6 hxg6 31. Rxg6 $16) 29... Bc7 $1 {[%emt 0:00:10]} 30. Rg1 {[%emt 0:00:16]} Qf7 {[%emt 0:00:35]} 31. Kf1 {[%emt 0:01:16]} Rd8 {[%emt 0:00:06]} (31... b5 $11 {scheint genauer.} 32. axb5 (32. Ncd6 Qe6 $11) 32... cxb5 (32... Bxf5 $2 33. exf5 cxb5 34. Nd2 $18)) 32. Nd2 {[%emt 0:00:25]} (32. Ncd6 $1 $14 Qe6 (32... Bxd6 33. Nxd6 Qc7 34. Nf5 $16) 33. h5) 32... Qd7 {[%emt 0:00:08]} 33. h5 {[%emt 0:00:39]} (33. Ng7 $11 {hält das Gleichgewicht.}) 33... Bxf5 $17 {[%emt 0:00:01]} 34. exf5 {[%emt 0:00:03]} Qxf5 {[%emt 0:00:01]} 35. Ne4 $2 {[%emt 0:00:19]} (35. Ke2 $17 {ist eine bessere Verteidigung.}) 35... Rhf8 $2 {[%emt 0:00:16]} (35... Qf3 $19 {Droht ...Qd1+ und aus.} 36. Qd2 (36. Rg7 $2 Bh2 $19) 36... f5) 36. Rg7 $11 {[%emt 0:00:09]} Qh3+ {[%emt 0:00:01]} 37. Ke2 {[%emt 0:00:11]} Rfe8 {[%emt 0:00:05]} (37... f5 $11 {bleibt in der Remisbreite.} 38. Nd2 c4 39. bxc4 Qh2) 38. Qxh7 $16 {[%emt 0:00:09]} Rh8 {[%emt 0:00:04]} 39. Qg6 {[%emt 0:00:06]} Qxh5+ {[%emt 0:00:16]} 40. Qxh5 {[%emt 0:00:03]} Rxh5 {[%emt 0:00:01]} 41. Nxf6 {[%emt 0:00:02]} Re5+ {[%emt 0:00:03]} (41... Rf5 $16 42. Ne4 Rh5) 42. Ne4 $1 $18 {[%emt 0:00:03]} b5 {[%emt 0:00:12] [#]} (42... c4 {ist wohl besser.} 43. bxc4 Rde8) 43. Rf7 $1 $18 {[%emt 0:00:06]} c4 {[%emt 0:00:03]} 44. bxc4 {[%emt 0:00:07]} bxc4 {[%emt 0:00:01]} 45. Rgg7 {[%emt 0:00:06]} Bb6 {[%emt 0:00:01]} 46. a5 $2 {[%emt 0:00:05]} ({Weiss kommt nicht vorbei an} 46. f4 $18 Red5 47. dxc4) 46... cxd3+ $11 {[%emt 0:00:01]} 47. cxd3 {[%emt 0:00:03]} Rxa5 {[%emt 0:00:01]} 48. f4 {[%emt 0:00:12]} Ra2+ {[%emt 0:00:01]} 49. Kf3 {[%emt 0:00:01]} Ra3 {[%emt 0:00:00]} 50. Ke2 {[%emt 0:00:02]} c5 {[%emt 0:00:11]} 51. Rb7+ {[%emt 0:00:07]} Ka8 {[%emt 0:00:01]} 52. Rbd7 $2 {[%emt 0:00:06] [#]} (52. Nd2 $11 {und Weiss steht sicher.}) 52... Re8 $2 {[%emt 0:00:26]} ({Vergiftet wäre} 52... c4 $2 53. Rxd8+ Bxd8 54. Rg8 $18) (52... Rxd7 $1 $19 53. Rxd7 c4) 53. Rge7 $11 {[%emt 0:00:05]} Rh8 {[%emt 0:00:07]} 54. Rh7 {[%emt 0:00:01]} Rxh7 {[%emt 0:00:02]} 55. Rxh7 {[%emt 0:00:01]} c4 {[%emt 0:00:00]} 56. Rh8+ {[%emt 0:00:06]} (56. dxc4 $2 {verliert.} Re3+ 57. Kd1 Rxe4 $19) 56... Kb7 {[%emt 0:00:01]} 57. Nd6+ {[%emt 0:00:01]} (57. dxc4 $2 {zu gefräßig.} Re3+ 58. Kd2 Rxe4 $19) 57... Kc6 {[%emt 0:00:00]} 58. Nxc4 {[%emt 0:00:01]} Ra1 {[%emt 0:00:35]} (58... Ra2+ $1 $11 {ist überlegen.} 59. Kf3 Ra1) 1/2-1/2

[Event "Grand Prix Romania 1st Stage 2024"]
[Site "Bucuresti"]
[Date "2024.03.23"]
[Round "4.8"]
[White "Korobov, Anton"]
[Black "Manolache, Marius"]
[Result "0-1"]
[ECO "E76"]
[WhiteElo "2662"]
[BlackElo "2387"]
[Annotator "TA"]
[PlyCount "80"]
[EventDate "2024.03.20"]
[EventType "swiss"]
[EventCountry "ROU"]
[SourceTitle "playchess.com"]
[Source "ChessBase"]
[SourceQuality "1"]
[TimeControl "900+5"]

{[%evp 13,80,66,67,53,30,51,44,21,98,96,124,139,147,147,310,306,318,268,333,318,343,339,375,332,306,319,290,271,293,279,276,287,393,391,375,262,260,229,285,270,272,266,264,262,300,303,306,296,325,243,364,364,356,356,485,285,300,-350,-344,-6295,275,-6199,-5593,-29990,-29991,-29993,-29994,-29994,-29995]} 1. c4 {[%emt 0:00:01]} Nf6 {[%emt 0:00:04]} 2. Nc3 {[%emt 0:00:02]} d6 {[%emt 0:00:01]} 3. d4 {[%emt 0:00:06]} c6 {[%emt 0:00:09]} 4. e4 {[%emt 0:00:14]} g6 {[%emt 0:00:02]} 5. f4 {[%emt 0:00:36]} Bg7 {[%emt 0:00:26]} 6. Nf3 {[%emt 0:00:02]} O-O {[%emt 0:00:13]} 7. Be2 {[%emt 0:00:02]} Bg4 {[%emt 0:00:45]} 8. e5 {[%emt 0:00:24]} dxe5 {[%emt 0:00:24]} 9. fxe5 {[%emt 0:00:02]} Ne8 {[%emt 0:00:31][%cal Oc6c5,Bf6e8,Be8c7,Bc7d5][%mdl 32]} 10. Be3 {[%emt 0:00:12] Weiß steht etwas besser.} Bxf3 {[%emt 0:01:15]} (10... c5 $11) 11. Bxf3 $16 {[%emt 0:00:03]} Nd7 {[%emt 0:00:02][%cal Oc6c5]} 12. Qe2 {[%emt 0:01:04]} Nc7 {[%emt 0:00:27][%cal Oc6c5]} 13. O-O-O {[%emt 0:00:13] Zielt auf h4 ab.} Rc8 $2 {[%emt 0:00:50]} (13... Qc8 $16 14. h4 c5) 14. h4 $18 {[%emt 0:00:10][%cal Bh2h4,Bh4h5][%mdl 32]} b5 {[%emt 0:00:04][%cal Bb7b5,Bb5b4][%mdl 32]} 15. c5 {[%emt 0:00:25] Lässt Nb6 nicht zu} (15. Bxc6 Nb6 16. c5 (16. Nxb5 Ncd5 $18) (16. Bxb5 Nxb5 17. cxb5 Na4 $14) (16. cxb5 a6 $18) 16... Ncd5 $18) 15... b4 {[%emt 0:00:20]} 16. Ne4 {[%emt 0:00:03]} Nd5 {[%emt 0:00:02]} 17. h5 {[%emt 0:00:12]} Qa5 {[%emt 0:00:44]} 18. Kb1 {[%emt 0:00:03]} Rb8 {[%emt 0:00:02]} 19. hxg6 {[%emt 0:00:23]} hxg6 {[%emt 0:00:55]} 20. Bc1 {[%emt 0:00:22]} Nc3+ {[%emt 0:00:22]} 21. Nxc3 {[%emt 0:00:12]} (21. bxc3 Nxe5 22. c4 (22. dxe5 bxc3+ 23. Kc2 Bxe5 $18) 22... b3 $11) 21... bxc3 {[%emt 0:00:01]} 22. b3 {[%emt 0:00:01]} (22. Bxc6 $6 Nxe5 23. dxe5 Rfc8 $18) 22... Nxe5 {[%emt 0:01:26]} 23. dxe5 {[%emt 0:00:10]} Qxc5 {[%emt 0:00:06]} 24. Rh4 {[%emt 0:02:04] Droht e6 und aus.} Bxe5 {[%emt 0:01:42]} 25. Qc4 {[%emt 0:00:31]} Qf2 {[%emt 0:00:46][%cal Ob8b4] Droht stark ...Rb4!} 26. Re4 {[%emt 0:00:15]} (26. Bxc6 $2 Rb4 (26... c2+ $2 27. Qxc2 Qxh4 28. Bd5 $19) 27. Bf3 (27. Rh8+ $2 Bxh8 28. Qd3 Rc8 $19) 27... Ra4 $19 (27... Qxh4 $2 28. Qxh4 Rxh4 29. Be3 $19) (27... Rxc4 $2 28. Rxc4 Kg7 29. Rh1 $19)) 26... Bf6 {[%emt 0:00:52]} 27. Re2 {[%emt 0:00:07]} (27. Qxc6 $2 Rfc8 28. Rc4 (28. Re2 $2 Qxe2 29. Bxe2 Rxc6 $19) 28... Rxc6 $19) 27... Qb6 {[%emt 0:00:21]} 28. g4 {[%emt 0:00:11][%cal Bg2g4,Bg4g5][%mdl 32]} (28. Qxc6 Qxc6 29. Bxc6 e6 $18) (28. Bxc6 Rbc8 29. Be3 c2+ (29... Qxc6 30. Qxc6 Rxc6 31. Bxa7 $17) 30. Kxc2 (30. Qxc2 Qa6 $17) 30... Qxc6 31. Qxc6 Rxc6+ 32. Kb1 Ra8 $17) 28... Rfd8 {[%emt 0:00:17]} 29. Rxd8+ {[%emt 0:00:20]} Qxd8 {[%emt 0:00:30]} 30. g5 {[%emt 0:00:31]} (30. Bxc6 Qd1 31. Be4 Kg7) 30... Bg7 {[%emt 0:00:02]} 31. Kc2 {[%emt 0:00:04]} ({Jedoch nicht} 31. Qxc6 Rc8 32. Qa6 Qd7) (31. Bxc6 Rc8 $18) 31... Qa5 {[%emt 0:00:31]} (31... e6 $142 32. Be4 (32. Qxc6 Rc8 $18) 32... Qe7 33. Qxc6 Rf8) 32. a3 {[%emt 0:00:04]} (32. Qxc6 $2 {verliert.} Qxa2+ 33. Kd1 Qxb3+ 34. Ke1 Qb1 $19) 32... e6 {[%emt 0:00:12]} 33. Qxc6 {[%emt 0:00:21]} Rd8 {[%emt 0:00:10]} 34. Be4 {[%emt 0:00:15] Verhindert Qf5.} (34. Bg4 $142) 34... Qe5 {[%emt 0:00:15] Und ...Qd4 würde nun gewinnen.} 35. Rg2 $4 {[%emt 0:00:53][%mdl 8192]} (35. Rf2 $18 {und Weiss kann entspannen.}) 35... Qd4 $19 {[%emt 0:00:13]} 36. Qc4 $2 {[%emt 0:00:48]} (36. Qb7 Qd1+ 37. Kb1) 36... Qd1+ {[%emt 0:00:08]} 37. Kb1 {[%emt 0:00:01] [#] Schwarz muss nun Bc2 beachten.} Rd2 $1 {[%emt 0:01:04] ( -> ...Kh7)} 38. Qc8+ {[%emt 0:03:37] [#]} Kh7 $1 {[%emt 0:00:15] Schwarz setzt Matt.} 39. Qc4 {[%emt 0:00:24]} Rb2+ {[%emt 0:00:06]} 40. Rxb2 {[%emt 0:00:02]} cxb2 {[%emt 0:00:02] Kein schönes Erlebnis für Weiß.   Gewichteter Fehlerwert: Weiß=0.59/Schwarz=0.34.  Verlustzug:     	---       	Schwarz=1     Gewinn verpasst:   	Weiß=2     	---        Fehler:       	Weiß=2     	Schwarz=2     Ungenau:       	Weiß=2     	Schwarz=2     OK:         	Weiß=14    	Schwarz=9     Bester:       	Weiß=1     	Schwarz=2} 0-1

[Event "Grand Prix Romania 1st Stage 2024"]
[Site "Bucuresti"]
[Date "2024.03.23"]
[Round "4.9"]
[White "Kuzubov, Yuriy"]
[Black "Secheres, Adrian-Simion"]
[Result "0-1"]
[ECO "B07"]
[WhiteElo "2605"]
[BlackElo "2371"]
[Annotator "TA"]
[PlyCount "86"]
[EventDate "2024.03.20"]
[EventType "swiss"]
[EventCountry "ROU"]
[SourceTitle "playchess.com"]
[Source "ChessBase"]
[SourceQuality "1"]
[TimeControl "900+5"]

{[%evp 12,86,23,20,20,9,13,0,17,-13,0,0,0,0,0,0,15,15,20,0,0,0,15,10,15,0,11,11,65,27,39,33,122,64,67,8,0,0,0,0,0,7,0,0,0,-2,-2,-19,-2,-19,0,-20,0,0,0,0,0,0,2,0,0,0,0,0,0,0,0,0,0,0,0,0,0,0,0,0,0]} 1. d4 {[%emt 0:00:04]} Nf6 {[%emt 0:00:03]} 2. Nf3 {[%emt 0:00:02]} g6 {[%emt 0:00:03]} 3. Nbd2 {[%emt 0:00:06]} Bg7 {[%emt 0:00:18]} 4. e4 {[%emt 0:00:03]} O-O {[%emt 0:00:03]} 5. Be2 {[%emt 0:00:06]} d6 {[%emt 0:00:08]} 6. O-O {[%emt 0:00:05]} Nbd7 {[%emt 0:00:16]} 7. c3 {[%emt 0:00:14]} e5 {[%emt 0:00:07]} 8. Re1 {[%emt 0:00:06]} b6 {[%emt 0:00:11]} 9. Qc2 {[%emt 0:00:41]} a5 {[%emt 0:01:35]} 10. Nf1 {[%emt 0:00:45]} Bb7 {[%emt 0:00:19]} 11. Ng3 {[%emt 0:00:04]} Re8 {[%emt 0:01:07]} 12. Bf1 {[%emt 0:00:25]} d5 {[%emt 0:00:27]} 13. exd5 {[%emt 0:00:47]} Nxd5 {[%emt 0:01:03]} 14. Bg5 {[%emt 0:00:59]} Qc8 {[%emt 0:00:12]} 15. Bb5 {[%emt 0:01:05]} h6 {[%emt 0:00:56]} 16. Bd2 {[%emt 0:00:18]} exd4 {[%emt 0:00:26]} 17. Nxd4 {[%emt 0:00:45]} Rxe1+ {[%emt 0:00:24]} 18. Rxe1 {[%emt 0:00:02]} c6 $1 {[%emt 0:00:03][%cal Bc7c6,Bc6c5][%mdl 32]} 19. Bd3 {[%emt 0:01:33][%cal Od3g6]} Nf8 {[%emt 0:00:33]} (19... c5 $11 20. Nb5 Qc6) 20. h4 {[%emt 0:00:33]} c5 {[%emt 0:02:09]} 21. Nf3 {[%emt 0:01:10] Black must now prevent h5.} Qc6 {[%emt 0:02:05]} (21... h5 $14) 22. Qc1 {[%emt 0:01:33]} (22. h5 $16) 22... h5 $1 $14 {[%emt 0:00:17]} 23. Be4 {[%emt 0:00:24]} (23. Bh6 $14 Nh7 24. Be4) 23... Qc7 $11 {[%emt 0:00:14] The position is equal.} 24. Bh6 {[%emt 0:01:23]} Nf6 $1 {[%emt 0:01:04]} 25. Bxg7 {[%emt 0:01:35]} Kxg7 {[%emt 0:00:06]} 26. Bxb7 {[%emt 0:00:08]} Qxb7 {[%emt 0:00:03]} 27. Ng5 {[%emt 0:00:56]} Re8 {[%emt 0:00:32]} 28. Rd1 {[%emt 0:00:53]} Qc7 {[%emt 0:00:29]} 29. Qd2 {[%emt 0:00:31]} b5 {[%emt 0:01:01]} 30. Nf1 {[%emt 0:00:09]} Qe5 {[%emt 0:00:48]} 31. Ne3 {[%emt 0:00:03]} Re7 {[%emt 0:00:25]} 32. Qd6 {[%emt 0:00:05]} a4 {[%emt 0:00:07]} 33. Qxe5 {[%emt 0:00:05]} Rxe5 {[%emt 0:00:01]} 34. Rd6 {[%emt 0:00:03]} Ne6 {[%emt 0:00:10]} 35. Nxe6+ {[%emt 0:00:07]} (35. Nf3 $5 Re4 $8 36. Rb6 $14) 35... Rxe6 {[%emt 0:00:01]} 36. Rxe6 {[%emt 0:00:04]} fxe6 {[%emt 0:00:01][%mdl 4096] Endgame. KN-KN} 37. c4 {[%emt 0:00:06]} b4 {[%emt 0:00:10]} 38. Kf1 {[%emt 0:00:04]} Ne4 {[%emt 0:00:04]} 39. f3 {[%emt 0:00:03]} Nd6 {[%emt 0:00:01]} 40. Ke2 {[%emt 0:00:06]} Kf6 {[%emt 0:00:02] [#] ...Ke5 would now be deadly.} 41. Kd3 {[%emt 0:00:03]} Ke5 {[%emt 0:00:01] ...Kf4 is the strong threat.} 42. g3 {[%emt 0:00:09]} Nf5 {[%emt 0:00:15]} 43. Nxf5 {[%emt 0:00:08]} exf5 {[%emt 0:00:20][%mdl 32768] Weighted Error Value: White=0.09 (flawless) /Black=0.10 (very precise) .  Mistake:       	White=2     	Black=2      Inaccurate:     	White=2     	---        OK:         	White=15    	Black=12     Strong:       	---       	Black=3     . Loss on time!?} 0-1